fUST/lending_fUST_20250628
["ID","MTS","AMOUNT","RATE_DAILY","PERIOD"]
[368268330,1751082650436,-460.0,0.00020273,2]
[368268332,1751082650446,-499.06,0.00020273,2]
[368268334,1751082650455,-460.0,0.00020273,2]
[368268336,1751082650464,-460.0,0.00020273,2]
[368268338,1751082650473,-567.47,0.00020273,2]
[368268340,1751082650482,-472.1,0.00020273,2]
[368268342,1751082650493,-151.708338,0.00020273,2]
[368268344,1751082650502,-2318.94,0.00020273,2]
[368268346,1751082650511,-507.82,0.00020273,2]
[368268348,1751082650520,-460.0,0.00020273,2]
[368268350,1751082650529,-5723.84,0.00020273,2]
[368268352,1751082650538,-460.0,0.00020273,2]
[368268354,1751082650547,-460.0,0.00020273,2]
[368268356,1751082650556,-553.34,0.00020273,2]
[368268358,1751082650565,-460.0,0.00020273,2]
[368268360,1751082650574,-1398.9,0.00020273,2]
[368268362,1751082650583,-1026.49,0.00020273,2]
[368268364,1751082650592,-460.0,0.00020273,2]
[368268366,1751082650601,-460.0,0.00020273,2]
[368268368,1751082650610,-460.0,0.00020273,2]
[368268370,1751082650619,-460.0,0.00020273,2]
[368268372,1751082650628,-460.0,0.00020273,2]
[368268374,1751082650637,-441.29482588,0.00020273,2]
[368268376,1751082650645,-1339.36,0.00020273,2]
[368268378,1751082650654,-460.0,0.00020273,2]
[368268379,1751082650663,-2563.64,0.00020273,2]
[368268380,1751082650672,-460.0,0.00020273,2]
[368268381,1751082650682,-506.77,0.00020273,2]
[368268382,1751082650691,-467.43720755,0.00020273,2]
[368268383,1751082650699,-6392.51,0.00020273,2]
[368268384,1751082650708,-460.0,0.00020273,2]
[368268385,1751082650717,-151.0,0.00020273,2]
[368268386,1751082650726,-460.0,0.00020273,2]
[368268387,1751082650735,-830.81,0.00020273,2]
[368268388,1751082650744,-1033.84,0.00020273,2]
[368268389,1751082650753,-473.01,0.00020273,2]
[368268390,1751082650762,-325.7,0.00020273,2]
[368268391,1751082650771,-190.19182746,0.00020273,2]
[368268393,1751082650780,-703.69,0.00020273,2]
[368268394,1751082650790,-279.163928,0.00020273,2]
[368268397,1751082650801,-460.0,0.00020273,2]
[368268398,1751082650811,-460.0,0.00020273,2]
[368268401,1751082650821,-460.0,0.00020273,2]
[368268403,1751082650831,-1518.6,0.00020273,2]
[368268404,1751082650842,-460.0,0.00020273,2]
[368268407,1751082650852,-550.23712706,0.00020273,2]
[368268408,1751082650862,-2416.47,0.00020273,2]
[368268411,1751082650872,-710.18,0.00020273,2]
[368268413,1751082650883,-1148.69,0.00020273,2]
[368268415,1751082650892,-2083.37,0.00020273,2]
[368268417,1751082650901,-460.0,0.00020273,2]
[368268419,1751082650911,-460.0,0.00020273,2]
[368268421,1751082650921,-460.0,0.00020273,2]
[368268423,1751082650930,-162.23139,0.00020318,6]
[368268425,1751082650940,-500.0,0.0002035,2]
[368268427,1751082650949,-160.0,0.00020383,3]
[368268429,1751082650958,-847.18566335,0.00020383,3]
[368268431,1751082650967,-12564.78152626,0.00020383,3]
[368268433,1751082650977,-213.78848551,0.00020383,3]
[368268435,1751082650986,-10539.0160523,0.00020383,3]
[368268437,1751082650995,-151.671166,0.00020383,2]
[368268439,1751082651004,-151.0,0.00020383,2]
[368268440,1751082651013,-373.32551,0.00020383,2]
[368268443,1751082651023,-373.32551,0.00020383,2]
[368268444,1751082651032,-151.0,0.000204,4]
[368268446,1751082651041,-264.0,0.00020412,2]
[368268448,1751082651050,-1134.74,0.00020538,3]
[368268450,1751082651059,-567.36,0.00020538,3]
[368268452,1751082651068,-674.96,0.00020538,3]
[368268454,1751082651078,-337.48,0.00020538,3]
[368268457,1751082651087,-168.0,0.00020539,2]
[368268459,1751082651097,-151.0,0.00020547,2]
[368268461,1751082651107,-154.934733,0.00020547,2]
[368268463,1751082651116,-154.934733,0.00020547,2]
[368268465,1751082651126,-197.703931,0.00020547,2]
[368268467,1751082651135,-197.703931,0.00020547,2]
[368268469,1751082651144,-460.0,0.00020547,2]
[368268471,1751082651153,-500.0,0.00020547,14]
[368268473,1751082651163,-233.70864593,0.00020547,2]
[368268475,1751082651172,-460.0,0.00020547,2]
[368268477,1751082651181,-460.0,0.00020547,2]
[368268479,1751082651189,-460.0,0.00020547,2]
[368268481,1751082651198,-563.59,0.00020547,2]
[368268483,1751082651207,-460.0,0.00020547,2]
[368268485,1751082651216,-194.20416739,0.00020547,2]
[368268487,1751082651225,-460.0,0.00020547,2]
[368268489,1751082651235,-460.0,0.00020547,2]
[368268491,1751082651244,-460.0,0.00020547,2]
[368268493,1751082651253,-154.972368,0.00020547,2]
[368268495,1751082651262,-415.94,0.00020547,2]
[368268497,1751082651271,-460.0,0.00020547,2]
[368268499,1751082651280,-526.17548705,0.00020547,2]
[368268501,1751082651289,-460.0,0.00020547,2]
[368268503,1751082651299,-809.06,0.00020547,2]
[368268505,1751082651308,-460.0,0.00020547,2]
[368268507,1751082651317,-2585.43,0.00020547,2]
[368268509,1751082651327,-1197.58,0.00020547,2]
[368268511,1751082651339,-460.0,0.00020547,2]
[368268513,1751082651349,-3401.94,0.00020547,2]
[368268515,1751082651358,-554.57,0.00020547,2]
[368268517,1751082651369,-694.58,0.00020547,2]
[368268519,1751082651379,-2915.06,0.00020547,2]
[368268521,1751082651388,-262.73755337,0.00020547,2]
[368268523,1751082651397,-460.0,0.00020547,2]
[368268525,1751082651406,-892.72,0.00020547,2]
[368268527,1751082651416,-460.0,0.00020547,2]
[368268529,1751082651426,-875.61,0.00020547,2]
[368268531,1751082651435,-488.9,0.00020547,2]
[368268533,1751082651444,-460.0,0.00020547,2]
[368268535,1751082651453,-460.0,0.00020547,2]
[368268536,1751082651462,-460.0,0.00020547,2]
[368268539,1751082651471,-460.0,0.00020547,2]
[368268540,1751082651480,-2592.81,0.00020547,2]
[368268543,1751082651489,-460.0,0.00020547,2]
[368268545,1751082651499,-476.53,0.00020547,2]
[368268546,1751082651508,-590.08,0.00020547,2]
[368268549,1751082651518,-460.0,0.00020547,2]
[368268551,1751082651527,-460.0,0.00020547,2]
[368268553,1751082651537,-505.73,0.00020547,2]
[368268555,1751082651546,-478.43730492,0.00020547,2]
[368268557,1751082651555,-460.0,0.00020547,2]
[368268559,1751082651564,-485.43,0.00020547,2]
[368268560,1751082651573,-1281.57,0.00020547,2]
[368268563,1751082651583,-3204.57,0.00020547,2]
[368268564,1751082651592,-2702.71,0.00020547,2]
[368268566,1751082651602,-460.0,0.00020547,2]
[368268568,1751082651611,-513.54,0.00020547,2]
[368268570,1751082651621,-460.0,0.00020547,2]
[368268572,1751082651631,-514.04,0.00020547,2]
[368268574,1751082651640,-1359.25,0.00020547,2]
[368268576,1751082651649,-460.0,0.00020547,2]
[368268578,1751082651658,-156.55555328,0.00020547,2]
[368268580,1751082651667,-3562.53,0.00020547,2]
[368268582,1751082651677,-587.54,0.00020547,2]
[368268584,1751082651686,-460.0,0.00020547,2]
[368268586,1751082651695,-460.0,0.00020547,2]
[368268588,1751082651704,-3090.88,0.00020547,2]
[368268590,1751082651714,-460.0,0.00020547,2]
[368268592,1751082651723,-499.06,0.00020547,2]
[368268594,1751082651732,-507.76737903,0.00020547,2]
[368268596,1751082651741,-460.0,0.00020547,2]
[368268598,1751082651750,-567.47,0.00020547,2]
[368268600,1751082651759,-472.1,0.00020547,2]
[368268603,1751082651769,-2318.94,0.00020547,2]
[368268605,1751082651778,-460.0,0.00020547,2]
[368268607,1751082651787,-5723.84,0.00020547,2]
[368268609,1751082651797,-460.0,0.00020547,2]
[368268611,1751082651806,-460.0,0.00020547,2]
[368268613,1751082651815,-553.34,0.00020547,2]
[368268615,1751082651825,-460.0,0.00020547,2]
[368268617,1751082651834,-1398.9,0.00020547,2]
[368268619,1751082651843,-1026.49,0.00020547,2]
[368268621,1751082651852,-460.0,0.00020547,2]
[368268623,1751082651862,-460.0,0.00020547,2]
[368268625,1751082651871,-430.31385132,0.00020547,2]
[368268627,1751082651880,-460.0,0.00020547,2]
[368268629,1751082651889,-1339.36,0.00020547,2]
[368268630,1751082651899,-460.0,0.00020547,2]
[368268633,1751082651909,-2563.64,0.00020547,2]
[368268634,1751082651918,-166.76932862,0.00020547,2]
[368268636,1751082651927,-506.77,0.00020547,2]
[368268638,1751082651936,-6392.51,0.00020547,2]
[368268640,1751082651945,-460.0,0.00020547,2]
[368268642,1751082651955,-460.0,0.00020547,2]
[368268645,1751082651965,-830.81,0.00020547,2]
[368268647,1751082651975,-1033.84,0.00020547,2]
[368268649,1751082651984,-473.01,0.00020547,2]
[368268651,1751082651993,-703.69,0.00020547,2]
[368268653,1751082652002,-460.0,0.00020547,2]
[368268655,1751082652011,-460.0,0.00020547,2]
[368268656,1751082652020,-1518.6,0.00020547,2]
[368268658,1751082652029,-460.0,0.00020547,2]
[368268661,1751082652039,-2416.47,0.00020547,2]
[368268663,1751082652048,-710.18,0.00020547,2]
[368268665,1751082652058,-1148.69,0.00020547,2]
[368268667,1751082652067,-2083.37,0.00020547,2]
[368268669,1751082652076,-460.0,0.00020547,2]
[368268671,1751082652086,-460.0,0.00020547,2]
[368268673,1751082652095,-460.0,0.00020547,2]
[368268675,1751082652109,-4099.1,0.000206,2]
[368268677,1751082652119,-5888.0,0.0002062,2]
[368268679,1751082652128,-10539.0160523,0.00020624,3]
[368268681,1751082652138,-500.0,0.00020643,2]
[368268683,1751082652146,-521.1,0.00020691,3]
[368268684,1751082652155,-503.93739225,0.00020695,2]
[368268687,1751082652165,-500.0,0.00020695,2]
[368268689,1751082652174,-5000.0,0.00020695,2]
[368268691,1751082652183,-500.0,0.00020695,2]
[368268693,1751082652192,-500.0,0.00020695,2]
[368268695,1751082652201,-500.0,0.00020695,2]
[368268697,1751082652210,-500.0,0.00020695,2]
[368268698,1751082652219,-500.0,0.00020695,2]
[368268700,1751082652228,-207.4,0.00020695,2]
[368268702,1751082652238,-500.0,0.00020695,2]
[368268704,1751082652247,-25000.0,0.00020695,2]
[368268706,1751082652256,-500.0,0.00020695,2]
[368268708,1751082652265,-500.0,0.00020695,2]
[368268710,1751082652274,-500.0,0.00020695,2]
[368268712,1751082652283,-18218.17108754,0.00020695,2]
[368268714,1751082652292,-500.0,0.00020695,2]
[368268717,1751082652301,-500.0,0.00020695,2]
[368268718,1751082652310,-500.0,0.00020695,2]
[368268720,1751082652319,-500.0,0.00020695,2]
[368268722,1751082652331,-500.0,0.00020695,2]
[368268724,1751082652341,-500.0,0.00020695,2]
[368268727,1751082652350,-500.0,0.00020695,2]
[368268729,1751082652359,-500.0,0.00020695,2]
[368268731,1751082652370,-666.0,0.00020695,2]
[368268733,1751082652379,-151.0,0.00020695,2]
[368268735,1751082652389,-151.0,0.00020695,2]
[368268737,1751082652398,-153.044696,0.00020695,2]
[368268739,1751082652407,-151.0,0.000207,4]
[368268741,1751082652416,-3078.66809803,0.00020721,2]
[368268743,1751082652426,-162.23139,0.00020736,5]
[368268745,1751082652435,-690.642,0.0002075,2]
[368268746,1751082652443,-716.195754,0.00020805,2]
[368268748,1751082652452,-460.0,0.00020821,2]
[368268750,1751082652462,-460.0,0.00020821,2]
[368268753,1751082652471,-460.0,0.00020821,2]
[368268754,1751082652480,-460.0,0.00020821,2]
[368268756,1751082652492,-563.59,0.00020821,2]
[368268758,1751082652502,-460.0,0.00020821,2]
[368268760,1751082652512,-460.0,0.00020821,2]
[368268762,1751082652521,-460.0,0.00020821,2]
[368268764,1751082652530,-460.0,0.00020821,2]
[368268765,1751082652540,-460.0,0.00020821,2]
[368268766,1751082652549,-152.446602,0.00020821,2]
[368268767,1751082652558,-460.0,0.00020821,2]
[368268768,1751082652567,-203.781626,0.00020821,2]
[368268769,1751082652576,-809.06,0.00020821,2]
[368268770,1751082652585,-203.781626,0.00020821,2]
[368268771,1751082652594,-152.049472,0.00020821,2]
[368268772,1751082652603,-460.0,0.00020821,2]
[368268773,1751082652616,-2585.43,0.00020821,2]
[368268774,1751082652625,-1197.58,0.00020821,2]
[368268775,1751082652635,-460.0,0.00020821,2]
[368268777,1751082652644,-3401.94,0.00020821,2]
[368268779,1751082652653,-554.57,0.00020821,2]
[368268780,1751082652661,-694.58,0.00020821,2]
[368268782,1751082652671,-2915.06,0.00020821,2]
[368268784,1751082652680,-460.0,0.00020821,2]
[368268797,1751082652689,-892.72,0.00020821,2]
[368268799,1751082652794,-460.0,0.00020821,2]
[368268801,1751082652804,-875.61,0.00020821,2]
[368268803,1751082652813,-488.9,0.00020821,2]
[368268805,1751082652822,-169.51318283,0.00020821,2]
[368268807,1751082652831,-460.0,0.00020821,2]
[368268809,1751082652840,-460.0,0.00020821,2]
[368268811,1751082652849,-460.0,0.00020821,2]
[368268813,1751082652858,-2592.81,0.00020821,2]
[368268815,1751082652867,-460.0,0.00020821,2]
[368268817,1751082652876,-476.53,0.00020821,2]
[368268819,1751082652885,-460.0,0.00020821,2]
[368268821,1751082652894,-590.08,0.00020821,2]
[368268822,1751082652903,-460.0,0.00020821,2]
[368268824,1751082652912,-505.73,0.00020821,2]
[368268826,1751082652922,-460.0,0.00020821,2]
[368268828,1751082652931,-485.43,0.00020821,2]
[368268831,1751082652940,-1281.57,0.00020821,2]
[368268833,1751082652949,-3204.57,0.00020821,2]
[368268834,1751082652959,-2702.71,0.00020821,2]
[368268837,1751082652968,-460.0,0.00020821,2]
[368268838,1751082652977,-513.54,0.00020821,2]
[368268840,1751082652986,-415.743074,0.00020821,2]
[368268842,1751082652996,-514.04,0.00020821,2]
[368268844,1751082653005,-1359.25,0.00020821,2]
[368268846,1751082653014,-460.0,0.00020821,2]
[368268848,1751082653025,-3562.53,0.00020821,2]
[368268850,1751082653036,-587.54,0.00020821,2]
[368268852,1751082653045,-460.0,0.00020821,2]
[368268854,1751082653056,-460.0,0.00020821,2]
[368268856,1751082653065,-3090.88,0.00020821,2]
[368268858,1751082653075,-460.0,0.00020821,2]
[368268860,1751082653084,-499.06,0.00020821,2]
[368268862,1751082653093,-567.47,0.00020821,2]
[368268864,1751082653103,-472.1,0.00020821,2]
[368268866,1751082653113,-2318.94,0.00020821,2]
[368268868,1751082653122,-460.0,0.00020821,2]
[368268870,1751082653130,-5723.84,0.00020821,2]
[368268872,1751082653139,-460.0,0.00020821,2]
[368268874,1751082653148,-460.0,0.00020821,2]
[368268876,1751082653158,-553.34,0.00020821,2]
[368268878,1751082653167,-460.0,0.00020821,2]
[368268880,1751082653177,-1398.9,0.00020821,2]
[368268882,1751082653186,-1026.49,0.00020821,2]
[368268884,1751082653195,-460.0,0.00020821,2]
[368268886,1751082653204,-460.0,0.00020821,2]
[368268888,1751082653213,-460.0,0.00020821,2]
[368268890,1751082653222,-1339.36,0.00020821,2]
[368268892,1751082653232,-2563.64,0.00020821,2]
[368268894,1751082653242,-506.77,0.00020821,2]
[368268896,1751082653251,-6392.51,0.00020821,2]
[368268898,1751082653260,-460.0,0.00020821,2]
[368268900,1751082653269,-460.0,0.00020821,2]
[368268902,1751082653278,-830.81,0.00020821,2]
[368268904,1751082653287,-1033.84,0.00020821,2]
[368268906,1751082653296,-473.01,0.00020821,2]
[368268908,1751082653306,-703.69,0.00020821,2]
[368268910,1751082653315,-460.0,0.00020821,2]
[368268912,1751082653324,-460.0,0.00020821,2]
[368268914,1751082653337,-373.32551,0.00020821,2]
[368268916,1751082653346,-1518.6,0.00020821,2]
[368268918,1751082653355,-460.0,0.00020821,2]
[368268920,1751082653366,-373.32551,0.00020821,2]
[368268922,1751082653377,-2416.47,0.00020821,2]
[368268924,1751082653387,-710.18,0.00020821,2]
[368268926,1751082653397,-1148.69,0.00020821,2]
[368268928,1751082653406,-2083.37,0.00020821,2]
[368268930,1751082653416,-460.0,0.00020821,2]
[368268932,1751082653425,-460.0,0.00020821,2]
[368268934,1751082653434,-460.0,0.00020821,2]
[368268936,1751082653443,-742.6949969,0.0002086,2]
[368268938,1751082653452,-10539.0160523,0.00020866,4]
[368268940,1751082653461,-151.0,0.000209,3]
[368268942,1751082653471,-770.17471178,0.00020915,2]
[368268944,1751082653480,-151.0,0.00020936,2]
[368268946,1751082653490,-980.49077,0.00020936,2]
[368268948,1751082653499,-980.49077,0.00020936,2]
[368268950,1751082653508,-521.1,0.00020937,4]
[368268952,1751082653517,-500.0,0.00020958,15]
[368268954,1751082653526,-798.67117612,0.0002097,2]
[368268956,1751082653535,-197.703931,0.0002097,2]
[368268957,1751082653544,-197.703931,0.0002097,2]
[368268959,1751082653552,-153.073621,0.00021,2]
[368268961,1751082653563,-154.934733,0.00021,2]
[368268964,1751082653572,-154.934733,0.00021,2]
[368268965,1751082653581,-828.22200964,0.00021025,2]
[368268967,1751082653590,-858.86622399,0.0002108,2]
[368268969,1751082653600,-460.0,0.00021095,2]
[368268972,1751082653609,-460.0,0.00021095,2]
[368268973,1751082653618,-460.0,0.00021095,2]
[368268976,1751082653628,-460.0,0.00021095,2]
[368268978,1751082653637,-563.59,0.00021095,2]
[368268979,1751082653647,-460.0,0.00021095,2]
[368268981,1751082653656,-151.0,0.00021095,2]
[368268983,1751082653665,-460.0,0.00021095,2]
[368268985,1751082653675,-267.308168,0.00021095,2]
[368268988,1751082653684,-460.0,0.00021095,2]
[368268989,1751082653693,-460.0,0.00021095,2]
[368268991,1751082653702,-151.442658,0.00021095,2]
[368268994,1751082653712,-460.0,0.00021095,2]
[368268996,1751082653721,-460.0,0.00021095,2]
[368268997,1751082653730,-809.06,0.00021095,2]
[368268999,1751082653739,-460.0,0.00021095,2]
[368269001,1751082653748,-2585.43,0.00021095,2]
[368269004,1751082653758,-1197.58,0.00021095,2]
[368269006,1751082653767,-460.0,0.00021095,2]
[368269008,1751082653776,-3401.94,0.00021095,2]
[368269010,1751082653786,-694.58,0.00021095,2]
[368269012,1751082653795,-554.57,0.00021095,2]
[368269014,1751082653804,-2915.06,0.00021095,2]
[368269016,1751082653813,-460.0,0.00021095,2]
[368269017,1751082653824,-892.72,0.00021095,2]
[368269019,1751082653833,-460.0,0.00021095,2]
[368269021,1751082653842,-875.61,0.00021095,2]
[368269024,1751082653852,-488.9,0.00021095,2]
[368269026,1751082653862,-460.0,0.00021095,2]
[368269028,1751082653871,-460.0,0.00021095,2]
[368269030,1751082653880,-460.0,0.00021095,2]
[368269032,1751082653890,-2592.81,0.00021095,2]
[368269034,1751082653899,-460.0,0.00021095,2]
[368269036,1751082653908,-476.53,0.00021095,2]
[368269038,1751082653917,-590.08,0.00021095,2]
[368269039,1751082653926,-460.0,0.00021095,2]
[368269041,1751082653935,-460.0,0.00021095,2]
[368269043,1751082653945,-505.73,0.00021095,2]
[368269045,1751082653954,-460.0,0.00021095,2]
[368269047,1751082653963,-485.43,0.00021095,2]
[368269049,1751082653972,-1281.57,0.00021095,2]
[368269051,1751082653981,-3204.57,0.00021095,2]
[368269053,1751082653990,-2702.71,0.00021095,2]
[368269055,1751082654000,-460.0,0.00021095,2]
[368269057,1751082654009,-513.54,0.00021095,2]
[368269060,1751082654019,-514.04,0.00021095,2]
[368269061,1751082654028,-1359.25,0.00021095,2]
[368269063,1751082654037,-597.35918788,0.00021095,2]
[368269065,1751082654047,-3562.53,0.00021095,2]
[368269067,1751082654057,-587.54,0.00021095,2]
[368269069,1751082654066,-460.0,0.00021095,2]
[368269072,1751082654076,-460.0,0.00021095,2]
[368269073,1751082654085,-3090.88,0.00021095,2]
[368269075,1751082654094,-460.0,0.00021095,2]
[368269077,1751082654104,-499.06,0.00021095,2]
[368269080,1751082654114,-567.47,0.00021095,2]
[368269082,1751082654125,-472.1,0.00021095,2]
[368269084,1751082654135,-2318.94,0.00021095,2]
[368269086,1751082654143,-460.0,0.00021095,2]
[368269088,1751082654153,-5723.84,0.00021095,2]
[368269090,1751082654162,-460.0,0.00021095,2]
[368269091,1751082654171,-460.0,0.00021095,2]
[368269093,1751082654180,-553.34,0.00021095,2]
[368269096,1751082654190,-460.0,0.00021095,2]
[368269097,1751082654200,-1398.9,0.00021095,2]
[368269100,1751082654209,-1026.49,0.00021095,2]
[368269101,1751082654219,-500.0,0.00021095,2]
[368269103,1751082654228,-460.0,0.00021095,2]
[368269105,1751082654237,-460.0,0.00021095,2]
[368269107,1751082654246,-1339.36,0.00021095,2]
[368269109,1751082654256,-2563.64,0.00021095,2]
[368269110,1751082654265,-506.77,0.00021095,2]
[368269111,1751082654274,-6392.51,0.00021095,2]
[368269112,1751082654284,-500.0,0.00021095,2]
[368269113,1751082654293,-460.0,0.00021095,2]
[368269114,1751082654302,-830.81,0.00021095,2]
[368269115,1751082654312,-1033.84,0.00021095,2]
[368269116,1751082654321,-473.01,0.00021095,2]
[368269117,1751082654331,-703.69,0.00021095,2]
[368269118,1751082654343,-460.0,0.00021095,2]
[368269119,1751082654352,-460.0,0.00021095,2]
[368269120,1751082654361,-1518.6,0.00021095,2]
[368269122,1751082654371,-460.0,0.00021095,2]
[368269124,1751082654382,-2416.47,0.00021095,2]
[368269126,1751082654392,-710.18,0.00021095,2]
[368269128,1751082654401,-1148.69,0.00021095,2]
[368269130,1751082654412,-2083.37,0.00021095,2]
[368269132,1751082654421,-460.0,0.00021095,2]
[368269134,1751082654431,-460.0,0.00021095,2]
[368269136,1751082654440,-460.0,0.00021095,2]
[368269138,1751082654449,-10539.0160523,0.00021107,4]
[368269140,1751082654459,-890.64427428,0.00021135,2]
[368269142,1751082654469,-521.1,0.00021183,4]
[368269144,1751082654478,-162.23139,0.00021189,6]
[368269146,1751082654489,-923.59811243,0.0002119,2]
[368269148,1751082654498,-398.671171,0.00021195,4]
[368269150,1751082654508,-151.0,0.000212,4]
[368269152,1751082654518,-5000.0,0.00021243,2]
[368269154,1751082654527,-25000.0,0.00021243,2]
[368269156,1751082654536,-151.0,0.00021243,2]
[368269158,1751082654546,-957.77124259,0.00021245,2]
[368269160,1751082654555,-3078.66809803,0.00021269,2]
[368269162,1751082654565,-993.20877856,0.000213,2]
[368269164,1751082654575,-264.0,0.00021327,2]
[368269166,1751082654584,-264.0,0.00021336,2]
[368269168,1751082654594,-10539.0160523,0.00021348,5]
[368269169,1751082654603,-1029.95750337,0.00021355,2]
[368269171,1751082654612,-548.246,0.00021355,2]
[368269174,1751082654622,-500.0,0.00021367,2]
[368269176,1751082654632,-152.030538,0.00021369,2]
[368269177,1751082654642,-154.934733,0.00021369,2]
[368269179,1751082654651,-154.934733,0.00021369,2]
[368269181,1751082654661,-197.703931,0.00021369,2]
[368269183,1751082654670,-197.703931,0.00021369,2]
[368269185,1751082654679,-460.0,0.00021369,2]
[368269187,1751082654689,-500.0,0.00021369,16]
[368269189,1751082654698,-460.0,0.00021369,2]
[368269191,1751082654708,-460.0,0.00021369,2]
[368269194,1751082654718,-460.0,0.00021369,2]
[368269196,1751082654728,-563.59,0.00021369,2]
[368269197,1751082654738,-556.38144673,0.00021369,2]
[368269200,1751082654748,-460.0,0.00021369,2]
[368269202,1751082654757,-306.12,0.00021369,2]
[368269203,1751082654767,-428.18,0.00021369,2]
[368269205,1751082654775,-460.0,0.00021369,2]
[368269207,1751082654785,-203.781626,0.00021369,2]
[368269209,1751082654794,-809.06,0.00021369,2]
[368269211,1751082654804,-203.781626,0.00021369,2]
[368269213,1751082654813,-460.0,0.00021369,2]
[368269215,1751082654822,-2585.43,0.00021369,2]
[368269217,1751082654832,-1197.58,0.00021369,2]
[368269219,1751082654841,-460.0,0.00021369,2]
[368269221,1751082654851,-3401.94,0.00021369,2]
[368269223,1751082654861,-694.58,0.00021369,2]
[368269225,1751082654871,-554.57,0.00021369,2]
[368269227,1751082654880,-2915.06,0.00021369,2]
[368269229,1751082654890,-460.0,0.00021369,2]
[368269231,1751082654899,-892.72,0.00021369,2]
[368269243,1751082654996,-460.0,0.00021369,2]
[368269245,1751082655016,-875.61,0.00021369,2]
[368269248,1751082655025,-488.9,0.00021369,2]
[368269249,1751082655035,-312.61280322,0.00021369,2]
[368269251,1751082655044,-460.0,0.00021369,2]
[368269253,1751082655053,-460.0,0.00021369,2]
[368269255,1751082655063,-2592.81,0.00021369,2]
[368269257,1751082655073,-460.0,0.00021369,2]
[368269259,1751082655083,-476.53,0.00021369,2]
[368269261,1751082655094,-590.08,0.00021369,2]
[368269264,1751082655105,-460.0,0.00021369,2]
[368269265,1751082655115,-460.0,0.00021369,2]
[368269267,1751082655124,-505.73,0.00021369,2]
[368269269,1751082655134,-460.0,0.00021369,2]
[368269270,1751082655144,-485.43,0.00021369,2]
[368269272,1751082655153,-1281.57,0.00021369,2]
[368269274,1751082655162,-3204.57,0.00021369,2]
[368269275,1751082655172,-2702.71,0.00021369,2]
[368269276,1751082655182,-474.82475095,0.00021369,2]
[368269278,1751082655191,-513.54,0.00021369,2]
[368269279,1751082655200,-514.04,0.00021369,2]
[368269281,1751082655210,-1359.25,0.00021369,2]
[368269283,1751082655219,-3562.53,0.00021369,2]
[368269284,1751082655229,-587.54,0.00021369,2]
[368269286,1751082655239,-460.0,0.00021369,2]
[368269287,1751082655248,-460.0,0.00021369,2]
[368269289,1751082655258,-3090.88,0.00021369,2]
[368269290,1751082655267,-540.15,0.00021369,2]
[368269292,1751082655276,-499.06,0.00021369,2]
[368269293,1751082655285,-567.47,0.00021369,2]
[368269295,1751082655294,-472.1,0.00021369,2]
[368269296,1751082655303,-2318.94,0.00021369,2]
[368269298,1751082655312,-460.0,0.00021369,2]
[368269299,1751082655321,-5723.84,0.00021369,2]